bitfinex-derivatives/quotes_ETHF0:USTF0_20250403
["timestamp","ask_amount","ask_price","bid_price","bid_amount"]
[1743647030980,0.87732,1823.9,1823.6,1.4911]
[1743647031380,1.5244,1823.9,1823.6,2.36854]
[1743647031591,3.2078,1824.0,1823.6,1.4911]
[1743647031790,3.2078,1824.0,1823.7,2.36847]
[1743647031989,5.60947,1824.0,1823.8,1.4911]
[1743647032389,1.5244,1823.9,1823.8,1.4911]
[1743647034295,0.87739,1823.8,1823.6,0.00822571]
[1743647034595,1.5073,1823.7,1823.6,0.00822571]
[1743647037099,3.2078,1824.0,1823.6,0.00822571]
[1743647037296,3.805,1823.9,1823.6,2.30593571]
[1743647037491,3.805,1823.9,1823.7,1.4203]
[1743647038491,5.3262,1823.9,1823.7,1.4203]
[1743647038698,6.20351,1823.9,1823.7,1.4203]
[1743647039094,5.3262,1823.9,1823.7,1.4203]
[1743647040799,6.20352,1823.9,1823.7,1.4203]
[1743647041003,4.08515,1823.8,1823.7,1.4203]
[1743647041202,4.601,1823.8,1823.7,1.4203]
[1743647041506,3.805,1823.9,1823.7,2.29768]
[1743647041805,3.805,1823.9,1823.7,1.4203]
[1743647042002,3.805,1823.9,1823.8,1.4926]
[1743647042801,3.805,1823.9,1823.8,2.2418]
[1743647045605,4.7088,1824.0,1823.8,2.2418]
[1743647045807,3.804,1824.1,1823.9,0.87731]
[1743647046007,7.0118,1824.2,1823.9,1.4831]
[1743647046218,8.5339,1824.2,1823.9,2.2149]
[1743647046410,1.5221,1824.1,1823.9,2.2149]
[1743647046716,1.5221,1824.1,1824.0,1.4831]
[1743647048012,7.0118,1824.2,1824.0,1.4831]
[1743647048811,5.3261,1824.2,1824.0,1.4831]
[1743647050908,5.3261,1824.2,1824.0,2.36035]
[1743647051310,5.3261,1824.2,1824.1,1.393]
[1743647052025,0.88252737,1824.3,1824.1,1.393]
[1743647052319,4.68652737,1824.3,1824.1,1.393]
[1743647052514,6.08652737,1824.3,1824.1,1.393]
[1743647055415,1.4219,1824.2,1824.1,1.393]
[1743647056223,4.68652737,1824.3,1824.1,1.393]
[1743647056423,6.10842737,1824.3,1824.1,1.393]
[1743647061525,1.4881,1824.2,1824.1,1.393]
[1743647062729,2.36526,1824.2,1824.1,1.393]
[1743647062921,2.36526,1824.2,1823.9,0.7318]
[1743647063227,1.4881,1824.1,1823.9,2.1456]
[1743647063529,1.4881,1824.1,1824.0,1.4138]
[1743647064832,4.68653737,1824.3,1824.0,1.4138]
[1743647065328,6.21113737,1824.3,1824.0,2.29105]
[1743647065527,6.21113737,1824.3,1824.0,1.4138]
[1743647065716,1.5246,1824.2,1824.1,1.433]
[1743647066722,2.40176,1824.2,1824.1,1.433]
[1743647067228,1.5246,1824.2,1824.1,1.433]
[1743647068727,2.40176,1824.2,1824.1,1.433]
[1743647070224,0.87716,1824.2,1824.1,1.433]
[1743647070430,0.00540737,1824.3,1824.1,1.433]
[1743647070431,0.88255737,1824.3,1824.1,1.433]
[1743647071328,2.37975737,1824.3,1824.1,1.433]
[1743647071723,0.00540737,1824.3,1824.1,1.433]
[1743647071925,0.00540737,1824.3,1824.2,0.7138]
[1743647072330,0.00540737,1824.3,1824.2,1.59096]
[1743647072529,0.00540737,1824.3,1824.2,3.03986]
[1743647077330,1.57191,1824.8,1824.5,0.877]
[1743647077633,4.496,1824.8,1824.6,0.87695]
[1743647077829,5.37287,1824.8,1824.7,1.5134]
[1743647078532,4.496,1824.8,1824.7,1.5134]
[1743647078928,6.0081,1824.8,1824.7,1.5134]
[1743647080538,2.2071,1824.8,1824.7,1.5134]
[1743647082534,2.2071,1824.8,1824.6,0.88517571]
[1743647082733,1.391,1824.7,1824.6,0.88517571]
[1743647084233,1.391,1824.7,1824.6,0.00822571]
[1743647084733,4.6175,1824.7,1823.9,3.2078]
[1743647084931,4.08489,1824.4,1824.0,0.87725]
[1743647085124,5.2558,1824.3,1824.0,2.35975]
[1743647085326,1.391,1824.2,1824.0,2.35975]
[1743647085526,1.391,1824.2,1824.0,1.4825]
[1743647087336,1.391,1824.2,1824.0,3.06936]
[1743647087533,1.391,1824.2,1824.0,2.1921]
[1743647087738,2.26816,1824.2,1824.1,1.482]
[1743647088338,2.26816,1824.2,1824.0,0.7096]
[1743647088539,1.5204,1824.1,1823.9,0.00822571]
[1743647088838,4.67626,1824.0,1823.9,0.00822571]
[1743647089035,7.88406,1824.0,1823.9,0.00822571]
[1743647091337,9.31736,1824.0,1823.9,0.00822571]
[1743647093339,5.51836,1824.0,1823.9,0.00822571]
[1743647093535,9.31736,1824.0,1823.9,0.00822571]
[1743647094235,8.4401,1824.0,1823.9,0.00822571]
[1743647094540,1.4568,1824.3,1823.9,0.00822571]
[1743647094541,3.799,1824.1,1823.9,0.00822571]
[1743647095038,5.2107,1824.1,1823.9,1.39662571]
[1743647095339,5.2107,1824.1,1823.9,2.13512571]
[1743647095536,6.08792,1824.1,1823.9,2.13512571]
[1743647095938,1.4117,1824.0,1823.9,2.13512571]
[1743647097840,3.799,1824.1,1823.9,2.13512571]
[1743647098141,3.799,1824.1,1824.0,1.3872]
[1743647098339,5.3193,1824.1,1824.0,1.3872]
[1743647099436,6.19651,1824.1,1824.0,1.3872]
[1743647099640,5.3193,1824.1,1824.0,1.3872]
[1743647099841,3.2078,1824.2,1824.0,2.26442]
[1743647100244,3.2078,1824.2,1824.1,1.3872]
[1743647100440,3.2078,1824.2,1823.9,2.36300571]
[1743647100635,1.5203,1824.1,1823.9,2.36301571]
[1743647100835,1.5203,1824.1,1823.9,1.48572571]
[1743647101033,4.08506,1824.0,1823.9,0.00822571]
[1743647101235,7.88406,1824.0,1823.9,0.00822571]
[1743647106136,7.0068,1824.0,1823.9,0.00822571]
[1743647106338,7.88406,1824.0,1823.9,0.00822571]
[1743647106539,4.08506,1824.0,1823.9,0.00822571]
[1743647106744,7.88306,1824.0,1823.9,0.00822571]
[1743647110242,0.87751,1823.5,1823.1,3.2078]
[1743647110441,3.2078,1823.3,1823.2,1.4544]
[1743647110740,3.798,1823.3,1823.2,2.33204]
[1743647110946,7.0058,1823.5,1823.2,2.33204]
[1743647111137,7.0058,1823.5,1823.3,2.1991]
[1743647111443,0.87757,1823.4,1823.2,0.00822571]
[1743647111646,2.29427,1823.4,1823.2,1.46262571]
[1743647112047,1.4167,1823.4,1823.2,1.46262571]
[1743647112433,2.29426,1823.4,1823.2,1.46262571]
[1743647112638,1.4167,1823.4,1823.2,1.46262571]
[1743647113138,7.0058,1823.5,1823.2,1.46262571]
[1743647113332,7.0058,1823.5,1823.2,2.34023571]
[1743647113740,7.0058,1823.5,1823.3,1.4436]
[1743647114143,7.0058,1823.5,1823.4,0.7059]
[1743647114438,0.87755,1823.4,1823.3,1.4436]
[1743647114652,2.38505,1823.4,1823.3,1.4436]
[1743647115449,1.5075,1823.4,1823.3,1.4436]
[1743647115842,2.38505,1823.4,1823.3,1.4436]
[1743647116045,0.87759,1823.3,1823.2,0.00822571]
[1743647116254,6.23229,1823.3,1823.2,0.00822571]
[1743647120138,6.23229,1823.3,1823.2,1.39662571]
[1743647120947,6.23229,1823.3,1823.2,0.00822571]
[1743647121740,3.2078,1823.3,1823.2,0.00822571]
[1743647121947,3.2078,1823.3,1823.2,0.88586571]
[1743647122349,3.2078,1823.3,1823.2,1.52712571]
[1743647122546,3.2078,1823.3,1823.2,2.40476571]
[1743647122743,3.798,1823.4,1823.2,1.52712571]
[1743647123051,3.798,1823.4,1823.3,1.5189]
[1743647125450,4.67555,1823.4,1823.3,1.5189]
[1743647125651,5.3025,1823.4,1823.3,1.5189]
[1743647125851,6.18005,1823.4,1823.3,1.5189]
[1743647126050,5.3025,1823.4,1823.3,1.5189]
[1743647127154,6.18005,1823.4,1823.3,1.5189]
[1743647128354,3.798,1823.4,1823.3,1.5189]
[1743647128546,7.0048,1823.5,1823.3,1.5189]
[1743647128954,7.0048,1823.5,1823.4,0.7394]
[1743647130651,3.2078,1823.5,1823.4,2.1312]
[1743647130857,3.80522571,1823.6,1823.4,2.1312]
[1743647131048,4.68267571,1823.6,1823.5,1.3918]
[1743647131251,4.68267571,1823.6,1823.4,0.7394]
[1743647131550,1.3754,1823.5,1823.4,0.7394]
[1743647131756,2.2529,1823.5,1823.4,2.1849]
[1743647132053,1.3754,1823.5,1823.4,2.1849]
[1743647133257,2.2529,1823.5,1823.4,2.1849]
[1743647136755,0.87759,1823.3,1823.2,0.00822571]
[1743647136956,4.67459,1823.3,1823.2,0.00822571]
[1743647137348,6.11969,1823.3,1823.2,0.00822571]
[1743647139957,5.2421,1823.3,1822.8,0.76]
[1743647140153,5.3924,1823.2,1822.8,0.76]
[1743647140458,5.3924,1823.2,1822.8,2.1661]
[1743647140459,0.87774,1823.0,1822.8,2.1661]
[1743647140656,4.67374,1823.0,1822.9,1.5111]
[1743647140856,7.88154,1823.0,1822.9,1.5111]
[1743647141454,7.88154,1823.0,1822.8,0.76822571]
[1743647141659,2.38629,1822.9,1822.8,0.76822571]
[1743647141862,2.38629,1822.9,1822.8,2.27932571]
[1743647142658,1.5085,1822.9,1822.8,2.27932571]
[1743647144671,2.38629,1822.9,1822.8,2.27932571]
[1743647144871,2.38629,1822.9,1822.8,0.00822571]
[1743647153988,3.12799,1822.9,1822.8,0.00822571]
[1743647157781,0.87796,1822.6,1822.2,0.87812]
[1743647157984,3.796,1822.5,1822.3,2.8405]
[1743647158183,3.796,1822.5,1822.4,1.4309]
[1743647159987,66.29443475,1822.5,1821.0,4.64901]
[1743647160285,3.2078,1821.9,1821.8,1.3825]
[1743647160488,7.0038,1821.9,1821.8,1.3825]
[1743647160680,4.08602,1822.1,1821.8,1.3825]
[1743647160879,4.67422,1822.0,1821.9,1.4652]
[1743647161081,4.67422,1822.0,1821.9,2.34347]
[1743647161082,3.796,1822.0,1821.9,2.34347]
[1743647161286,3.796,1822.0,1821.9,1.4652]
[1743647163184,3.796,1822.0,1821.9,2.34347]
[1743647163494,3.796,1822.4,1822.0,0.8782]
[1743647163700,3.796,1822.4,1822.1,1.3997]
[1743647164087,3.796,1822.4,1822.2,0.6881]
[1743647164290,3.796,1822.4,1822.3,2.1142]
[1743647164486,4.67403,1822.4,1822.3,2.1142]
[1743647165185,3.796,1822.4,1822.3,2.1142]
[1743647166391,4.67403,1822.4,1822.3,2.1142]
[1743647166596,6.90003,1822.4,1822.3,2.1142]
[1743647167897,3.796,1822.4,1822.3,2.1142]
[1743647169795,3.796,1822.4,1822.3,2.99228]
[1743647170300,3.796,1822.4,1822.3,2.1142]
[1743647170892,4.67403,1822.4,1822.3,2.1142]
[1743647172801,6.13713,1822.4,1822.3,2.1142]
[1743647174900,6.13713,1822.4,1822.3,1.3997]
[1743647176787,6.13715,1822.4,1822.0,2.33832]
[1743647177096,6.13715,1822.4,1822.3,1.4302]
[1743647177498,4.67405,1822.4,1822.3,1.4302]
[1743647177706,3.795,1822.4,1822.3,1.4302]
[1743647178105,3.795,1822.4,1822.3,2.141]
[1743647178804,3.795,1822.5,1822.3,2.141]
[1743647178996,3.795,1822.5,1822.4,2.2555]
[1743647187405,5.3039,1822.5,1822.4,2.2555]
[1743647190909,5.3039,1822.5,1821.8,0.00548384]
[1743647190910,11.0117,1822.5,1821.8,0.00548384]
[1743647191100,0.8781,1822.3,1821.9,0.87825]
[1743647191306,6.0632,1822.4,1822.0,2.801]
[1743647191307,5.1713,1822.2,1822.0,2.801]
[1743647191610,3.794,1822.2,1822.1,1.3914]
[1743647193611,5.1943,1822.2,1822.1,1.3914]
[1743647194500,5.1943,1822.2,1821.9,4.08604]
[1743647194501,0.87817,1822.1,1821.9,3.2078]
[1743647194700,3.794,1822.2,1821.9,1.5102]
[1743647194910,3.2078,1822.4,1822.0,2.2025]
[1743647195106,7.0008,1822.4,1822.1,2.2308]
[1743647195408,7.0008,1822.4,1822.2,1.5102]
[1743647196014,7.0008,1822.4,1822.3,0.7513]
[1743647196315,5.3037,1822.4,1822.3,0.7513]
[1743647198711,3.793,1822.4,1822.3,0.7513]
[1743647199213,3.793,1822.4,1822.3,2.2532]
[1743647199918,0.00822571,1822.6,1822.3,3.13128]
[1743647200114,0.00822571,1822.6,1822.4,4.7097]
[1743647200314,0.00822571,1822.6,1822.4,3.2078]
[1743647200509,2.24702571,1822.6,1822.4,4.7097]
[1743647200709,1.52902571,1822.6,1822.5,1.5019]
[1743647200909,0.00822571,1822.6,1822.5,2.2202]
[1743647203608,0.00822571,1822.6,1822.4,3.2078]
[1743647203815,0.88619571,1822.6,1822.3,0.7513]
[1743647204011,0.88619571,1822.6,1822.2,3.2078]
[1743647204012,0.87803,1822.4,1822.2,3.2078]
[1743647204211,2.1604,1822.3,1822.2,3.2078]
[1743647204905,3.0385,1822.3,1822.0,0.7062]
[1743647205111,6.08564,1822.2,1821.9,5.4436]
[1743647205417,2.1518,1822.1,1821.9,5.4436]
[1743647205604,0.7363,1822.1,1821.9,5.4436]
[1743647205810,5.2075,1822.2,1822.0,1.4944]
[1743647206213,3.792,1822.2,1822.0,2.37262]
[1743647206412,3.792,1822.2,1822.1,0.701]
[1743647206720,3.792,1822.2,1822.1,2.1954]
[1743647207418,5.2075,1822.2,1822.1,2.1954]
[1743647207619,6.08564,1822.2,1821.9,3.9492]
[1743647207822,2.38318,1822.1,1821.9,5.3846]
[1743647208014,1.505,1822.0,1821.8,0.00548384]
[1743647208215,4.67027,1821.9,1821.8,0.00548384]
[1743647208422,5.40387,1821.9,1821.8,0.00548384]
[1743647208613,10.11667,1821.9,1821.8,0.00548384]
[1743647209817,9.2384,1821.9,1821.3,3.9375]
[1743647210013,4.0862,1821.7,1821.3,4.81606]
[1743647210217,6.87232,1821.6,1821.4,1.4354]
[1743647210426,1.505,1821.5,1821.4,1.4354]
[1743647211118,4.49712571,1821.6,1821.4,1.4354]
[1743647211420,3.80122571,1821.6,1821.5,0.87846]
[1743647212617,0.00822571,1821.6,1821.5,4.08626]
[1743647214221,0.00822571,1821.6,1821.5,6.58626]
[1743647214425,7.0008,1822.1,1821.8,0.87831]
[1743647214625,8.5043,1822.1,1821.9,2.8882]
[1743647214812,8.5043,1822.1,1822.0,1.4831]
[1743647215219,9.38247,1822.1,1822.0,1.4831]
[1743647215422,8.5043,1822.1,1821.9,1.4051]
[1743647215626,8.5043,1822.1,1821.9,1.41332571]
[1743647216922,1.4571,1822.0,1821.9,0.00822571]
[1743647217129,2.1873,1822.0,1821.9,0.00822571]
[1743647218129,3.06552,1822.0,1821.9,0.00822571]
[1743647218629,2.1873,1822.0,1821.9,0.00822571]
[1743647218927,7.0008,1822.1,1821.9,0.00822571]
[1743647219124,7.0008,1822.1,1821.9,0.75072571]
[1743647219331,3.793,1822.1,1822.0,1.4519]
[1743647219732,1.46532571,1822.2,1822.0,1.4519]
[1743647220419,0.00822571,1822.2,1822.0,1.4519]
[1743647220624,0.00822571,1822.2,1821.9,3.95852571]
[1743647220625,0.88638571,1822.2,1821.9,3.95852571]
[1743647220827,3.792,1822.1,1821.9,3.95852571]
[1743647221029,1.4098,1822.0,1821.9,3.95852571]
[1743647221823,1.4098,1822.0,1821.9,5.38352571]
[1743647222026,1.4098,1822.0,1821.9,4.64102571]
[1743647224034,3.792,1822.1,1821.9,5.51929571]
[1743647224330,3.792,1822.1,1822.0,2.2257]
[1743647224730,5.2768,1822.1,1822.0,2.2257]
[1743647225035,6.15497,1822.1,1821.9,3.21602571]
[1743647225234,2.36302,1822.0,1821.9,3.21602571]
[1743647225634,2.36302,1822.0,1821.9,0.00822571]
[1743647226335,1.4848,1822.0,1821.9,0.00822571]
[1743647229034,2.36302,1822.0,1821.9,0.00822571]
[1743647233239,2.36302,1822.0,1821.5,3.2078]
[1743647233240,0.87832,1821.8,1821.5,3.2078]
[1743647233438,2.2699,1821.7,1821.5,4.7181]
[1743647233642,2.2699,1821.7,1821.6,1.5103]
[1743647234342,5.4777,1821.7,1821.4,1.4791]
[1743647234639,0.87846,1821.5,1821.4,1.4791]
[1743647234838,0.87846,1821.5,1821.3,1.5103]
[1743647234839,4.66946,1821.5,1821.3,1.5103]
[1743647235041,6.18846,1821.5,1821.3,1.5103]
[1743647236240,3.791,1821.5,1821.3,1.5103]
[1743647236439,3.791,1821.8,1821.3,9.36711]
[1743647236741,7.87707,1821.9,1821.6,0.87839]
[1743647237033,4.66927,1821.9,1821.7,2.9309]
[1743647237238,4.66927,1821.9,1821.8,1.4702]
[1743647237845,3.791,1821.9,1821.8,1.4702]
[1743647238542,3.791,1821.9,1821.8,2.34852]
[1743647238940,3.791,1821.9,1821.8,1.4702]
[1743647241448,3.791,1822.0,1821.8,2.34852]
[1743647241933,3.791,1822.0,1821.9,1.4441]
[1743647243647,4.66922,1822.0,1821.9,1.4441]
[1743647244341,3.791,1822.0,1821.9,1.4441]
[1743647246643,3.79,1822.1,1821.9,2.32235]
[1743647247146,3.79,1822.1,1822.0,2.2222]
[1743647247951,3.79,1822.1,1822.0,3.10042]
[1743647248351,0.00822571,1822.2,1822.0,3.10042]
[1743647248546,3.79822571,1822.2,1822.1,2.1646]
[1743647249650,3.79822571,1822.2,1822.1,6.25057]
[1743647249651,0.00822571,1822.2,1822.1,6.25057]
[1743647249844,0.00822571,1822.2,1822.1,8.75057]
[1743647251753,9.26181,1822.7,1822.4,0.87802]
[1743647251950,9.26181,1822.7,1822.5,2.8628]
[1743647252151,9.26181,1822.7,1822.6,1.4444]
[1743647252753,6.05401,1822.7,1822.6,1.4444]
[1743647254749,5.1761,1822.7,1822.6,1.4444]
[1743647255448,3.79,1822.7,1822.6,1.4444]
[1743647255760,0.00822571,1822.8,1822.6,2.32232]
[1743647256055,0.00822571,1822.8,1822.7,1.5215]
[1743647256851,0.00822571,1822.8,1822.7,2.39938]
[1743647257757,0.00822571,1822.8,1822.7,1.5215]
[1743647258458,5.29442571,1822.8,1822.5,1.42662571]
[1743647258753,5.872,1822.7,1822.5,1.42662571]
[1743647258951,1.3754,1822.6,1822.5,2.86152571]
[1743647259151,4.4966,1822.7,1822.6,0.87793]
[1743647259349,3.788,1822.7,1822.6,2.31283]
[1743647259953,0.00822571,1822.8,1822.7,0.87788]
[1743647260152,0.00822571,1822.8,1822.7,5.59948]
[1743647261058,0.00822571,1822.8,1822.7,4.7216]
[1743647261257,0.00822571,1822.8,1822.7,5.59948]
[1743647264055,3.2078,1823.3,1823.1,0.87769]
[1743647264259,2.8369,1823.4,1823.3,0.87759]
[1743647264466,3.2078,1823.6,1823.5,0.8775]
[1743647264652,3.71412,1824.1,1823.8,0.87735]
[1743647264855,2.8369,1824.1,1823.8,0.87735]
[1743647265055,6.6239,1824.1,1823.9,0.8773]
[1743647265256,6.63212571,1824.1,1824.0,2.35106]
[1743647265658,5.18702571,1824.1,1824.0,2.35106]
[1743647266565,0.00822571,1824.1,1824.0,2.35106]
[1743647267262,0.00822571,1824.1,1824.0,5.55886]
[1743647267463,5.1663,1824.4,1824.2,0.87713]
[1743647267661,1.3793,1824.4,1824.3,2.38381]
[1743647268061,1.3793,1824.4,1824.3,1.5067]
[1743647269369,0.00822571,1824.5,1824.3,1.5067]
[1743647269568,0.00822571,1824.5,1824.3,2.38378]
[1743647269962,1.51082571,1824.5,1824.3,2.38378]
[1743647270370,1.51082571,1824.5,1824.4,1.4705]
[1743647272265,1.51082571,1824.5,1824.4,2.34757]
[1743647272666,1.51082571,1824.5,1824.4,1.4705]
[1743647274266,1.51082571,1824.5,1824.2,4.81233]
[1743647274473,1.51082571,1824.5,1824.2,6.26643]
[1743647274671,1.51082571,1824.5,1824.3,0.87711]
[1743647274874,1.51082571,1824.5,1824.2,6.26644]
[1743647275671,1.51082571,1824.5,1824.3,0.87711]
[1743647275867,1.51082571,1824.5,1824.4,1.3785]
[1743647276670,0.00822571,1824.5,1824.4,5.46337]
[1743647279767,5.40708,1824.8,1824.6,0.87697]
[1743647279768,0.7472,1824.8,1824.6,0.87697]
[1743647279964,1.62407,1824.8,1824.7,1.4465]
[1743647280271,3.05757,1824.8,1824.7,1.4465]
[1743647280772,2.1807,1824.8,1824.7,1.4465]
[1743647281171,0.00822571,1824.9,1824.7,1.4465]
[1743647281373,0.00822571,1824.9,1824.8,0.87687]
[1743647281672,0.00822571,1824.9,1824.8,4.08467]
[1743647281874,0.00822571,1824.9,1824.8,5.50447]
[1743647282577,3.782,1825.3,1824.8,4.6276]
[1743647282772,6.04015,1825.3,1825.0,0.87678]
[1743647283077,1.3815,1825.2,1825.1,1.4198]
[1743647283777,1.3815,1825.2,1825.0,0.00822571]
[1743647283977,1.3815,1825.2,1825.0,1.39112571]
[1743647285678,1.3815,1825.2,1825.0,2.26789571]
[1743647286780,1.3815,1825.2,1825.0,1.39112571]
[1743647286976,0.87673,1825.1,1825.0,0.00822571]
[1743647287183,1.56713,1825.1,1825.0,0.00822571]
[1743647287582,3.04173,1825.1,1825.0,0.00822571]
[1743647288580,0.87678,1825.0,1824.6,4.08473]
[1743647288880,0.87683,1824.9,1824.6,4.6729]
[1743647289184,1.4746,1824.8,1824.6,4.6729]
[1743647289388,1.4746,1824.8,1824.6,5.54983]
[1743647289686,1.4746,1824.8,1824.6,4.6729]
[1743647291787,2.35148,1824.8,1824.6,4.6729]
[1743647291986,1.4746,1824.8,1824.6,4.6729]
[1743647292186,1.3975,1824.7,1824.6,4.6729]
[1743647293788,1.3975,1824.7,1824.6,1.4651]
[1743647293989,0.87697,1824.6,1824.5,0.00822571]
[1743647294189,1.4626,1824.6,1824.5,0.00822571]
[1743647294385,2.19986571,1825.3,1824.5,3.21602571]
[1743647294386,3.2078,1825.1,1824.5,3.21602571]
[1743647294585,4.08455,1825.1,1824.6,1.4324]
[1743647294786,2.9361,1825.2,1824.6,1.4324]
[1743647294787,1.4626,1825.2,1824.9,3.2078]
[1743647294991,1.4626,1825.2,1825.0,1.4324]
[1743647295190,2.9361,1825.2,1825.0,2.30916]
[1743647295494,2.9361,1825.2,1825.0,1.4324]
[1743647295693,3.81279,1825.2,1825.0,1.4324]
[1743647296584,1.3997,1825.1,1825.0,1.4324]
[1743647296895,2.27643,1825.1,1825.0,1.4324]
[1743647297202,1.3997,1825.1,1825.0,1.4324]
[1743647299801,1.4626,1825.2,1825.0,1.4324]
[1743647300097,3.84379,1825.2,1825.0,1.4324]
[1743647300303,2.9671,1825.2,1825.0,2.30917]
[1743647300496,3.84379,1825.2,1825.0,1.4324]
[1743647300701,1.5045,1825.2,1825.1,0.87673]
[1743647300898,1.5045,1825.2,1825.1,0.7008]
[1743647301399,1.5045,1825.2,1825.1,2.1606]
[1743647307904,1.5045,1825.2,1825.1,3.03733]
[1743647308096,3.78722571,1825.3,1825.1,3.03733]
[1743647308302,4.66386571,1825.3,1825.1,0.7008]
[1743647308503,1.4148,1825.2,1825.1,2.1483]
[1743647309409,3.78722571,1825.3,1825.1,2.1483]
[1743647309705,5.20202571,1825.3,1825.1,3.02503]
[1743647309908,5.20202571,1825.3,1825.2,1.4475]
[1743647310109,1.42302571,1825.3,1825.2,1.4475]
[1743647310404,0.00822571,1825.3,1825.2,2.32418]
[1743647313108,3.2078,1825.8,1825.2,4.6553]
[1743647313411,7.86122,1825.8,1825.5,0.8765]
[1743647313605,7.86122,1825.8,1825.6,1.5217]
[1743647313606,0.87644,1825.7,1825.6,1.5217]
[1743647313806,2.32344,1825.7,1825.6,1.5217]
[1743647314005,0.87649,1825.6,1825.5,0.7098]
[1743647314309,3.74919,1825.6,1825.5,0.7098]
[1743647314511,2.8727,1825.6,1825.5,0.7098]
[1743647314717,2.8727,1825.6,1825.5,2.1534]
[1743647316117,3.74919,1825.6,1825.5,1.4436]
[1743647317412,3.74919,1825.6,1825.4,3.21602571]
[1743647317613,2.27154,1825.5,1825.4,3.21602571]
[1743647317813,1.395,1825.5,1825.4,4.09261571]
[1743647318010,1.395,1825.5,1825.4,2.25881571]
[1743647318212,1.395,1825.5,1825.4,1.38222571]
[1743647318708,2.27154,1825.5,1825.4,1.38222571]
[1743647320316,1.395,1825.5,1825.4,1.38222571]
[1743647320710,2.27154,1825.5,1825.4,1.38222571]
[1743647321115,2.27154,1825.5,1825.4,0.00822571]
[1743647321312,6.04754,1825.5,1825.4,0.00822571]
[1743647325815,6.04654,1825.5,1825.4,0.00822571]
[1743647330721,0.87667,1825.3,1825.1,2.1281]
[1743647330927,3.775,1825.2,1825.1,2.1281]
[1743647331124,5.2799,1825.2,1825.1,2.1281]
[1743647331425,5.2799,1825.2,1825.1,1.4173]
[1743647340519,0.87662,1825.4,1825.1,2.29403]
[1743647340729,3.774,1825.3,1825.2,1.3994]
[1743647342035,5.2631,1825.3,1825.2,1.3994]
[1743647343428,6.13973,1825.3,1825.0,1.48382571]
[1743647343626,3.774,1825.3,1825.0,3.84796571]
[1743647343834,3.774,1825.3,1825.1,0.87673]
[1743647344032,3.774,1825.3,1825.2,2.36408]
[1743647344723,0.00822571,1825.7,1825.2,1.4874]
[1743647344930,6.9808,1825.6,1825.4,0.87655]
[1743647345128,3.773,1825.6,1825.5,2.1381]
[1743647345832,3.773,1825.6,1825.5,3.01464]
[1743647346940,0.00822571,1825.7,1825.5,3.01464]
[1743647347139,0.00822571,1825.7,1825.6,2.0782]
[1743647347440,3.78122571,1825.7,1825.6,2.0782]
[1743647348839,3.78122571,1825.7,1825.6,2.95469]
[1743647349135,0.00822571,1825.7,1825.6,2.95469]
[1743647354942,3.772,1826.1,1825.9,0.87632]
[1743647355135,3.772,1826.1,1826.0,2.8244]
[1743647357027,2.38936571,1826.2,1826.0,2.8244]
[1743647357234,6.16036571,1826.2,1826.1,1.5021]
[1743647357436,9.36816571,1826.2,1826.0,1.4273]
[1743647357741,1.4607,1826.1,1826.0,0.7128]
[1743647362140,2.33695,1826.1,1825.9,2.26442571]
[1743647362343,2.33695,1826.1,1825.9,1.51032571]
[1743647362344,0.8763,1826.0,1825.9,1.51032571]
[1743647362546,3.0671,1826.0,1825.9,0.00822571]
[1743647363240,3.0671,1826.0,1825.5,6.94701]
[1743647363241,2.1908,1826.0,1825.5,1.4233]
[1743647363442,0.87649,1825.6,1825.5,1.4233]
[1743647363647,0.87655,1825.5,1825.3,3.2078]
[1743647363845,0.87655,1825.5,1825.3,4.6311]
[1743647365053,0.87655,1825.5,1825.4,1.4233]
[1743647368640,4.08435,1825.5,1825.4,1.4233]
[1743647369048,0.87663,1825.3,1825.2,1.49092571]
[1743647369347,4.64663,1825.3,1825.2,1.49092571]
[1743647372344,1.4856,1825.6,1825.2,1.49092571]
[1743647372345,3.77,1825.4,1825.2,1.49092571]
[1743647372651,3.77,1825.4,1825.2,0.00822571]
[1743647372842,3.77,1825.4,1825.2,0.88490571]
[1743647373748,3.77,1825.4,1825.2,0.00822571]
[1743647375554,4.6466,1825.4,1825.2,0.00822571]
[1743647375846,3.77,1825.4,1825.2,0.00822571]
[1743647376549,4.64659,1825.4,1825.2,0.00822571]
[1743647377845,3.2078,1825.7,1825.3,0.87663]
[1743647378045,4.64549,1825.6,1825.3,0.87663]
[1743647378550,3.2078,1825.7,1825.2,0.00822571]
[1743647378751,3.769,1825.6,1825.5,0.87651]
[1743647379152,3.769,1825.6,1825.4,0.87655]
[1743647380448,3.769,1825.6,1825.3,3.2078]
[1743647380653,0.87659,1825.4,1825.2,0.88488571]
[1743647382458,0.87659,1825.4,1825.2,0.00822571]
[1743647382854,0.87659,1825.4,1825.2,0.88490571]
[1743647383053,0.87659,1825.4,1825.2,0.00822571]
[1743647390159,0.87657,1825.5,1825.2,0.00822571]
[1743647391961,0.87659,1825.4,1825.2,0.00822571]
[1743647392164,0.87657,1825.5,1825.2,0.00822571]
[1743647392864,0.8766,1825.4,1825.2,0.00822571]
[1743647394960,3.767,1825.3,1825.2,0.00822571]
[1743647395164,0.87679,1825.0,1824.7,4.08471]
[1743647395353,0.87679,1825.0,1824.7,0.87691]
[1743647395559,2.1287,1824.9,1824.7,0.87691]
[1743647395758,2.0804,1824.8,1824.7,0.87691]
[1743647395962,2.0804,1824.8,1824.7,4.08471]
[1743647396264,2.0804,1824.8,1824.6,0.00822571]
[1743647396459,0.7094,1824.8,1824.6,0.00822571]